fUST/lending_fUST_20251119
["ID","MTS","AMOUNT","RATE_DAILY","PERIOD"]
[394416177,1763547040653,-1001.77337171,0.00016466,2]
[394416178,1763547040662,-1000.0,0.00016466,2]
[394416179,1763547040671,-1000.0,0.00016466,2]
[394416180,1763547040681,-441.26,0.00016469,3]
[394416181,1763547040691,-674.16,0.00016469,3]
[394416182,1763547040700,-592.44,0.00016469,3]
[394416183,1763547040709,-500.0,0.00016473,2]
[394416184,1763547040718,-500.0,0.00016473,2]
[394416185,1763547040727,-500.0,0.00016473,2]
[394416186,1763547040736,-500.0,0.00016473,2]
[394416187,1763547040745,-500.0,0.00016473,2]
[394416188,1763547040755,-500.0,0.00016473,2]
[394416189,1763547040764,-241.88472765,0.00016482,2]
[394416190,1763547040773,-500.0,0.00016486,2]
[394416191,1763547040782,-502.26261043,0.00016486,2]
[394416192,1763547040791,-1000.0,0.00016486,2]
[394416193,1763547040800,-1000.0,0.00016486,2]
[394416194,1763547040810,-1000.0,0.00016488,2]
[394416195,1763547040820,-1000.0,0.00016488,2]
[394416196,1763547040832,-1000.0,0.00016488,2]
[394416197,1763547040841,-1000.0,0.00016517,2]
[394416198,1763547040850,-1004.69879942,0.00016517,2]
[394416199,1763547040859,-305.81187291,0.00016517,2]
[394416200,1763547040869,-420.0,0.00016533,2]
[394416201,1763547040878,-1680.0,0.00016534,2]
[394416202,1763547040887,-500.0,0.000166,2]
[394416203,1763547040896,-1680.0,0.00016607,2]
[394416204,1763547040906,-508.93431054,0.00016816,2]
[394416205,1763547040915,-720.0,0.00016959,2]
[394416206,1763547040925,-1429.59951479,0.0001697,2]
[394416207,1763547040934,-500.0,0.00016973,2]
[394416208,1763547040943,-506.25578774,0.00016973,2]
[394416209,1763547040953,-151.0,0.0001699,2]
[394416210,1763547040963,-151.0,0.0001699,2]
[394416211,1763547040972,-151.0,0.0001699,2]
[394416212,1763547040981,-177.0,0.00017004,2]
[394416213,1763547040992,-1500.0,0.00017014,2]
[394416214,1763547041003,-1500.0,0.00017014,2]
[394416215,1763547041012,-506.33799268,0.00017014,2]
[394416216,1763547041021,-1500.0,0.00017014,2]
[394416217,1763547041031,-1500.0,0.00017014,2]
[394416218,1763547041040,-1500.0,0.00017014,2]
[394416219,1763547041049,-1500.0,0.00017014,2]
[394416220,1763547041059,-1500.0,0.00017014,2]
[394416221,1763547041070,-1000.0,0.00017021,2]
[394416222,1763547041080,-1000.0,0.00017021,2]
[394416223,1763547041089,-1000.0,0.00017021,2]
[394416224,1763547041098,-631.4111994,0.00017021,2]
[394416225,1763547041108,-505.05635559,0.00017021,2]
[394416226,1763547041117,-1500.0,0.00017034,2]
[394416227,1763547041126,-1535.51572243,0.00017034,2]
[394416228,1763547041136,-1500.0,0.00017035,2]
[394416229,1763547041145,-1107.98317633,0.00017035,2]
[394416230,1763547041155,-1500.0,0.00017035,2]
[394416231,1763547041164,-524.87998137,0.00017065,2]
[394416232,1763547041173,-328.0,0.00017081,2]
[394416233,1763547041183,-671.37124151,0.000172,2]
[394416234,1763547041192,-239.491418,0.00017252,2]
[394416235,1763547041202,-382.0,0.00017267,2]
[394416236,1763547041211,-6096.50590769,0.00017364,2]
[394416237,1763547041220,-6096.50590769,0.0001738,2]
[394416238,1763547041230,-6096.50590769,0.00017396,2]
[394416239,1763547041239,-6096.50590769,0.00017412,2]
[394416240,1763547041248,-6096.50590769,0.00017429,2]
[394416241,1763547041258,-6096.50590769,0.00017445,2]
[394416242,1763547041267,-475.0,0.00017457,2]
[394416243,1763547041276,-6096.50590769,0.00017461,2]
[394416244,1763547041285,-160.0,0.00017471,2]
[394416245,1763547041294,-6096.50590769,0.00017477,2]
[394416246,1763547041303,-6096.50590769,0.00017493,2]
[394416247,1763547041312,-1000.0,0.000175,2]
[394416248,1763547041322,-6102.6024136,0.00017509,2]
[394416249,1763547041332,-2000.0,0.00017562,2]
[394416250,1763547041340,-1677.64798293,0.00017562,2]
[394416251,1763547041350,-1162.01282537,0.00017562,2]
[394416252,1763547041361,-514.91139396,0.00017562,2]
[394416253,1763547041371,-1843.68948455,0.00017562,2]
[394416254,1763547041380,-2000.0,0.00017562,2]
[394416255,1763547041389,-2000.0,0.00017562,2]
[394416256,1763547041398,-151.0,0.00017568,2]
[394416257,1763547041407,-1500.0,0.00017568,2]
[394416258,1763547041416,-1500.0,0.00017568,2]
[394416259,1763547041425,-610.10221103,0.00017568,2]
[394416260,1763547041434,-2000.0,0.00017582,2]
[394416261,1763547041444,-2000.0,0.00017583,2]
[394416262,1763547041453,-2000.0,0.00017583,2]
[394416263,1763547041462,-151.0,0.00017913,2]
[394416264,1763547041470,-151.0,0.00017913,2]
[394416265,1763547041479,-151.0,0.00017913,2]
[394416266,1763547041489,-260.0,0.00018019,2]
[394416267,1763547041498,-587.0,0.00018092,2]
[394416268,1763547041507,-1920.0,0.00018094,2]
[394416269,1763547041517,-2500.0,0.0001811,2]
[394416270,1763547041529,-2500.0,0.0001811,2]
[394416271,1763547041540,-2500.0,0.0001811,2]
[394416272,1763547041549,-1987.15738357,0.00018116,2]
[394416273,1763547041560,-1735.96333372,0.00018116,2]
[394416274,1763547041570,-2500.0,0.0001813,2]
[394416275,1763547041581,-1494.88981819,0.00018131,2]
[394416276,1763547041591,-2500.0,0.00018131,2]
[394416277,1763547041602,-1178.0,0.00018266,2]
[394416278,1763547041631,-360.0,0.00018566,2]
[394416279,1763547041640,-864.0,0.00018655,2]
[394416280,1763547041649,-3000.0,0.00018658,2]
[394416281,1763547041659,-598.41210041,0.00018658,2]
[394416282,1763547041668,-3000.0,0.00018658,2]
[394416283,1763547041677,-3000.0,0.00018678,2]
[394416284,1763547041686,-3000.0,0.00018679,2]
[394416285,1763547041696,-151.0,0.00019,2]
[394416286,1763547041706,-204.0,0.00019004,2]
[394416287,1763547041715,-151.0,0.00019021,2]
[394416288,1763547041724,-170.94349229,0.00019087,2]
[394416289,1763547041734,-683.77396917,0.00019087,2]
[394416290,1763547041743,-1538.49143062,0.00019087,2]
[394416291,1763547041752,-2732.36078079,0.00019087,2]
[394416292,1763547041764,-729.17144649,0.00019089,2]
[394416293,1763547041773,-2331.01528015,0.00019089,2]
[394416294,1763547041782,-460.0,0.00019114,2]
[394416295,1763547041791,-180.001427,0.00019178,2]
[394416296,1763547041801,-180.001427,0.00019178,2]
[394416297,1763547041811,-180.001427,0.00019178,2]
[394416298,1763547041820,-180.001427,0.00019178,2]
[394416299,1763547041829,-180.001427,0.00019178,2]
[394416300,1763547041839,-180.001427,0.00019178,2]
[394416301,1763547041848,-180.001427,0.00019178,2]
[394416302,1763547041857,-180.001427,0.00019178,2]
[394416303,1763547041867,-180.001427,0.00019178,2]
[394416304,1763547041877,-180.001427,0.00019178,2]
[394416305,1763547041886,-180.001427,0.00019178,2]
[394416306,1763547041895,-180.001427,0.00019178,2]
[394416307,1763547041914,-153.84547182,0.00019178,2]
[394416308,1763547041924,-3500.0,0.00019206,2]
[394416309,1763547041933,-3500.0,0.00019206,2]
[394416310,1763547041942,-1577.16532933,0.00019226,2]
[394416311,1763547041951,-3500.0,0.00019227,2]
[394416312,1763547041960,-411.76740508,0.00019267,2]
[394416313,1763547041969,-1647.06962032,0.00019267,2]
[394416314,1763547041980,-482.66397823,0.00019267,2]
[394416315,1763547041990,-1930.65591294,0.00019267,2]
[394416316,1763547042002,-560.0,0.00019662,2]
[394416317,1763547042011,-18094.8741709,0.00019715,2]
[394416318,1763547042020,-3000.0,0.00019754,2]
[394416319,1763547042125,-2000.0,0.00019754,2]
[394416320,1763547042135,-2013.64025914,0.00019775,2]
[394416321,1763547042145,-823.0,0.00019799,2]
[394416322,1763547042154,-3112.65346036,0.0002,2]
[394416323,1763547042164,-151.0,0.0002,2]
[394416324,1763547042174,-1000.0,0.0002,2]
[394416325,1763547042183,-1000.0,0.0002,2]
[394416326,1763547042192,-393.34334243,0.0002,2]
[394416327,1763547042201,-151.0,0.0002,2]
[394416328,1763547042210,-151.0,0.0002,2]
[394416329,1763547042219,-151.0,0.0002,2]
[394416330,1763547042228,-207.60022691,0.0002,2]
[394416331,1763547042237,-552.332513,0.00020187,2]
[394416332,1763547042247,-768.81066452,0.0002021,2]
[394416333,1763547042256,-1000.0,0.0002052,2]
[394416334,1763547042266,-151.0,0.000208,4]
[394416335,1763547042276,-151.0,0.00021,4]
[394416336,1763547042285,-151.0,0.00021003,7]
[394416337,1763547042295,-231.0,0.00021004,2]
[394416338,1763547042305,-6118.4056838,0.00021023,2]
[394416339,1763547042315,-183.9664267,0.00021136,2]
[394416340,1763547042324,-735.86570681,0.00021136,2]
[394416341,1763547042335,-1655.69784032,0.00021136,2]
[394416342,1763547042344,-232.411,0.00021263,2]
[394416343,1763547042354,-183.731,0.00021263,2]
[394416344,1763547042363,-151.0,0.000215,3]
[394416345,1763547042372,-414.92008594,0.00021514,2]
[394416346,1763547042382,-180.001427,0.00021667,7]
[394416347,1763547042392,-180.001427,0.00021667,7]
[394416348,1763547042402,-180.001427,0.00021667,7]
[394416349,1763547042411,-180.001427,0.00021667,7]
[394416351,1763547042420,-1152.0,0.00021667,2]
[394416352,1763547042430,-500.0,0.00021807,2]
[394416353,1763547042444,-400.87691731,0.00021875,10]
[394416354,1763547042454,-400.87691731,0.0002191,2]
[394416355,1763547042463,-500.0,0.00021917,2]
[394416356,1763547042473,-840.5469122,0.00021918,7]
[394416357,1763547042483,-260.616892,0.00021918,2]
[394416358,1763547042493,-260.616892,0.00021918,2]
[394416359,1763547042502,-260.616892,0.00021918,2]
[394416360,1763547042511,-260.616892,0.00021918,2]
[394416361,1763547042520,-260.616892,0.00021918,2]
[394416362,1763547042530,-260.616892,0.00021918,2]
[394416363,1763547042538,-260.616892,0.00021918,2]
[394416364,1763547042547,-260.616892,0.00021918,2]
[394416365,1763547042556,-260.616892,0.00021918,2]
[394416366,1763547042565,-260.616892,0.00021918,2]
[394416367,1763547042574,-260.616892,0.00021918,2]
[394416368,1763547042585,-260.616892,0.00021918,2]
[394416369,1763547042594,-151.0,0.00021918,7]
[394416370,1763547042604,-151.0,0.00021918,7]
[394416371,1763547042613,-151.0,0.00021918,7]
[394416372,1763547042622,-522.08602109,0.00021933,2]
[394416373,1763547042631,-425.52142847,0.00021933,2]
[394416374,1763547042641,-165.73717116,0.00021933,2]
[394416375,1763547042650,-662.94868463,0.00021933,2]
[394416376,1763547042660,-659.35577488,0.00021933,2]
[394416377,1763547042669,-377.89329795,0.00021953,2]
[394416378,1763547042678,-470.80631433,0.00021973,2]
[394416379,1763547042687,-505.60972619,0.00021973,2]
[394416380,1763547042695,-500.0,0.00021973,2]
[394416381,1763547042704,-501.18009364,0.00021973,2]
[394416382,1763547042714,-500.0,0.00021973,2]
[394416383,1763547042723,-500.0,0.00021973,2]
[394416384,1763547042732,-503.70002224,0.00021973,2]
[394416385,1763547042741,-500.0,0.00021973,2]
[394416386,1763547042751,-500.0,0.00021973,2]
[394416387,1763547042760,-500.0,0.00021973,2]
[394416388,1763547042770,-500.0,0.00021973,2]
[394416389,1763547042779,-445.69250355,0.00021973,2]
[394416390,1763547042789,-500.0,0.00021973,2]
[394416391,1763547042798,-500.0,0.00021973,2]
[394416392,1763547042807,-500.0,0.00021973,2]
[394416393,1763547042815,-500.0,0.00021973,2]
[394416394,1763547042824,-517.6516235,0.00021973,2]
[394416395,1763547042834,-501.23064018,0.00021973,2]
[394416396,1763547042842,-162.85610517,0.00021973,2]
[394416397,1763547042852,-500.28151942,0.00021973,2]
[394416398,1763547042861,-500.0,0.00021973,2]
[394416399,1763547042870,-158.67368353,0.00021973,2]
[394416400,1763547042879,-501.61884464,0.00021973,2]
[394416401,1763547042889,-500.0,0.00021973,2]
[394416402,1763547042898,-453.81206981,0.00021973,2]
[394416403,1763547042908,-500.0,0.00021973,2]
[394416404,1763547042917,-500.0,0.00021973,2]
[394416405,1763547042927,-500.0,0.00021973,2]
[394416406,1763547042937,-172.55388676,0.00021973,2]
[394416407,1763547042945,-500.0,0.00021973,2]
[394416408,1763547042955,-500.0,0.00021973,2]
[394416409,1763547042965,-500.0,0.00021973,2]
[394416410,1763547042974,-500.70555796,0.00021973,2]
[394416411,1763547042983,-165.48732767,0.00021973,2]
[394416412,1763547042996,-513.38764164,0.00021973,2]
[394416413,1763547043005,-430.05531192,0.00021973,2]
[394416414,1763547043015,-501.65067781,0.00021973,2]
[394416415,1763547043026,-500.0,0.00021973,2]
[394416416,1763547043036,-500.0,0.00021973,2]
[394416417,1763547043045,-500.0,0.00021973,2]
[394416418,1763547043054,-500.0,0.00021973,2]
[394416419,1763547043063,-500.0,0.00021973,2]
[394416420,1763547043074,-500.0,0.00021973,2]
[394416421,1763547043084,-939.75483796,0.00021988,2]
[394416422,1763547043094,-18094.8741709,0.0002199,2]
[394416423,1763547043103,-183.2,0.00022,7]
[394416424,1763547043113,-705.31,0.00022,14]
[394416425,1763547043123,-151.0,0.00022,6]
[394416426,1763547043132,-179563.59317441,0.00022,2]
[394416427,1763547044437,-4967.1265941,0.0001581,2]
[394416428,1763547044446,-638.41,0.00016476,3]
[394416429,1763547044456,-263.2791796,0.00021873,2]
[394416430,1763547044465,-3718.83238847,0.00022,2]
[394416431,1763547044476,-6070.30134272,0.00022,2]
[394416432,1763547044489,-508.54553003,0.00022,2]
[394416433,1763547044500,-920.38129747,0.00022,2]
[394416434,1763547044513,-436.70567626,0.00022,2]
[394416435,1763547045275,-9849.46233837,0.00022,2]
[394416449,1763547046177,-1098.37612677,0.00022,2]
[394416477,1763547046632,-4401.2996609,0.00022,2]
[394416488,1763547385983,169.604862,7.696e-05,2]
[394416556,1763548237969,-257.97386137,0.00014904,2]
[394416558,1763548237979,-150.0,0.00014905,2]
[394416560,1763548237988,-232.97,0.0001503,2]
[394416562,1763548237998,-169.604862,0.00015392,2]
[394416564,1763548238007,-1000.0,0.00015421,2]
[394416566,1763548238016,-211.05782315,0.00015809,2]
[394416568,1763548238025,-177.0,0.00016905,2]
[394416570,1763548238034,-300.0,0.00016998,2]
[394416572,1763548238044,-1178.0,0.00016998,2]
[394416574,1763548238054,-50000.0,0.00016999,2]
[394416576,1763548238063,-500.0,0.00016999,2]
[394416578,1763548238073,-500.0,0.00016999,2]
[394416580,1763548238083,-500.0,0.00016999,2]
[394416582,1763548238092,-500.0,0.00016999,2]
[394416584,1763548238101,-500.0,0.00016999,2]
[394416586,1763548238111,-500.0,0.00016999,2]
[394416588,1763548238120,-427.1009751,0.00016999,2]
[394416590,1763548238130,-500.0,0.00016999,2]
[394416592,1763548238140,-500.0,0.00016999,2]
[394416594,1763548238150,-194.68017902,0.00016999,2]
[394416596,1763548238160,-500.0,0.00016999,2]
[394416598,1763548238171,-500.0,0.00016999,2]
[394416600,1763548238180,-356.96018157,0.00016999,2]
[394416602,1763548238190,-500.0,0.00016999,2]
[394416604,1763548238198,-500.0,0.00016999,2]
[394416606,1763548238208,-191.30833695,0.00016999,2]
[394416608,1763548238217,-500.0,0.00016999,2]
[394416610,1763548238227,-500.0,0.00016999,2]
[394416612,1763548238236,-500.0,0.00016999,2]
[394416614,1763548238245,-500.0,0.00016999,2]
[394416616,1763548238255,-500.0,0.00016999,2]
[394416618,1763548238264,-500.0,0.00016999,2]
[394416620,1763548238273,-500.0,0.00016999,2]
[394416622,1763548238282,-500.0,0.00016999,2]
[394416624,1763548238292,-507.12625121,0.00016999,2]
[394416626,1763548238301,-500.0,0.00016999,2]
[394416628,1763548238310,-500.0,0.00016999,2]
[394416630,1763548238320,-500.0,0.00016999,2]
[394416631,1763548238332,-500.0,0.00016999,2]
[394416633,1763548238341,-500.0,0.00016999,2]
[394416635,1763548238351,-500.0,0.00016999,2]
[394416637,1763548238360,-500.0,0.00016999,2]
[394416639,1763548238371,-500.0,0.00016999,2]
[394416641,1763548238380,-500.0,0.00016999,2]
[394416643,1763548238390,-500.0,0.00016999,2]
[394416645,1763548238399,-500.0,0.00016999,2]
[394416647,1763548238410,-500.0,0.00016999,2]
[394416649,1763548238421,-500.0,0.00016999,2]
[394416651,1763548238430,-500.0,0.00016999,2]
[394416653,1763548238442,-255.04931033,0.00016999,2]
[394416656,1763548238454,-500.0,0.00016999,2]
[394416658,1763548238466,-500.0,0.00016999,2]
[394416660,1763548238478,-500.0,0.00016999,2]
[394416662,1763548238489,-500.0,0.00016999,2]
[394416664,1763548238501,-500.0,0.00016999,2]
[394416666,1763548238512,-500.0,0.00016999,2]
[394416669,1763548238524,-500.0,0.00016999,2]
[394416670,1763548238535,-500.0,0.00016999,2]
[394416672,1763548238545,-45839.12519212,0.00017,2]
[394416675,1763548238555,-6096.50590769,0.00017284,2]
[394416677,1763548238568,-500.0,0.00017333,2]
[394416679,1763548238579,-500.0,0.00017333,2]
[394416681,1763548238590,-500.0,0.00017333,2]
[394416683,1763548238601,-500.0,0.00017333,2]
[394416686,1763548238612,-500.0,0.00017333,2]
[394416688,1763548238624,-500.0,0.00017333,2]
[394416690,1763548238636,-500.0,0.00017333,2]
[394416692,1763548238646,-514.91139396,0.00017333,2]
[394416694,1763548238657,-500.0,0.00017333,2]
[394416696,1763548238669,-500.0,0.00017333,2]
[394416698,1763548238680,-300.0,0.00017339,2]
[394416701,1763548238691,-300.0,0.00017339,2]
[394416703,1763548238704,-300.0,0.00017339,2]
[394416705,1763548238716,-2123.96963575,0.000176,2]
[394416707,1763548238727,-6096.50590769,0.000177,2]
[394416709,1763548238738,-878.41,0.00017871,3]
[394416711,1763548238749,-402.19,0.00017871,3]
[394416713,1763548238760,-335.16,0.00017871,3]
[394416716,1763548238771,-1000.0,0.00017881,2]
[394416718,1763548238784,-1000.0,0.00017881,2]
[394416720,1763548238795,-1000.0,0.00017881,2]
[394416722,1763548238807,-1000.0,0.00017881,2]
[394416724,1763548238817,-1000.0,0.00017881,2]
[394416727,1763548238830,-1000.0,0.00017881,2]
[394416729,1763548238839,-1000.0,0.00017881,2]
[394416731,1763548238850,-662.01282537,0.00017881,2]
[394416733,1763548238861,-590.68055788,0.00017881,2]
[394416735,1763548238871,-524.87998137,0.00017973,2]
[394416737,1763548238881,-833.99,0.00017989,3]
[394416739,1763548238892,-292.79,0.0001799,3]
[394416741,1763548238904,-592.59612443,0.00017999,2]
[394416743,1763548238915,-500.0,0.00017999,2]
[394416746,1763548238926,-500.0,0.00017999,2]
[394416747,1763548238936,-500.0,0.00017999,2]
[394416750,1763548238947,-500.0,0.00017999,2]
[394416752,1763548238959,-500.0,0.00017999,2]
[394416754,1763548238969,-517.0276291,0.00017999,2]
[394416756,1763548238979,-500.0,0.00017999,2]
[394416758,1763548238989,-500.0,0.00017999,2]
[394416760,1763548238999,-500.0,0.00017999,2]
[394416762,1763548239012,-500.0,0.00017999,2]
[394416764,1763548239024,-127749.04650145,0.00018,2]
[394416767,1763548239035,-2039.79567765,0.00018,2]
[394416769,1763548239046,-6096.50590769,0.00018115,2]
[394416771,1763548239057,-1500.0,0.00018429,2]
[394416773,1763548239070,-1500.0,0.00018429,2]
[394416775,1763548239081,-1500.0,0.00018429,2]
[394416777,1763548239092,-1500.0,0.00018429,2]
[394416779,1763548239102,-177.64798293,0.00018429,2]
[394416782,1763548239113,-343.68948455,0.00018429,2]
[394416784,1763548239125,-1500.0,0.00018429,2]
[394416786,1763548239135,-6096.50590769,0.0001853,2]
[394416788,1763548239146,-420.0,0.00018566,2]
[394416790,1763548239157,-204.0,0.00018905,2]
[394416792,1763548239169,-242.40282107,0.00018925,2]
[394416794,1763548239181,-968.64167298,0.00018925,2]
[394416796,1763548239192,-6096.50590769,0.00018946,2]
[394416798,1763548239203,-2000.0,0.00018977,2]
[394416800,1763548239215,-2000.0,0.00018977,2]
[394416803,1763548239226,-2000.0,0.00018977,2]
[394416805,1763548239237,-2098.41210041,0.00018977,2]
[394416807,1763548239249,-2000.0,0.00018977,2]
[394416809,1763548239260,-153.84547182,0.00019178,2]
[394416811,1763548239270,-585.58,0.0001936,3]
[394416813,1763548239280,-6096.50590769,0.00019361,2]
[394416815,1763548239289,-2500.0,0.00019525,2]
[394416817,1763548239299,-2500.0,0.00019525,2]
[394416820,1763548239309,-2500.0,0.00019525,2]
[394416822,1763548239320,-2500.0,0.00019525,2]
[394416824,1763548239332,-6096.50590769,0.00019776,2]
[394416826,1763548239342,-501.38434486,0.0002,2]
[394416828,1763548239352,-1577.16532933,0.00020073,2]
[394416830,1763548239364,-3000.0,0.00020073,2]
[394416832,1763548239375,-3000.0,0.00020073,2]
[394416834,1763548239387,-3000.0,0.00020073,2]
[394416836,1763548239397,-6096.50590769,0.00020191,2]
[394416839,1763548239413,-361.0,0.00020222,2]
[394416841,1763548239425,-170.90252006,0.00020236,2]
[394416843,1763548239435,-587.0,0.00020278,2]
[394416845,1763548239444,-423.0,0.00020454,2]
[394416847,1763548239454,-74001.98380683,0.00020486,2]
[394416849,1763548239468,-3223.77318526,0.00020486,2]
[394417359,1763548757634,817.571508,0.00013699,2]
[394417406,1763549305368,5107.0,0.00032877,120]
[394417545,1763549444736,-3538.84135856,0.00015714,2]
[394417546,1763549444747,-281.45731697,0.00015813,2]
[394417547,1763549444757,-421.90605413,0.00015813,2]
[394417548,1763549444768,-153.07828241,0.00015814,2]
[394417549,1763549444778,-256.75655889,0.00015814,2]
[394417550,1763549444787,-150.0,0.00015975,2]
[394417551,1763549444798,-556.259663,0.0001656,2]
[394417552,1763549444807,-246.473327,0.00016702,2]
[394417553,1763549444816,-300.0,0.00016725,2]
[394417554,1763549444826,-3798.5266114,0.00016726,2]
[394417555,1763549445625,-836.65895818,0.00016726,2]
[394417557,1763549445924,1039.65302496,0.00030137,120]
[394417583,1763549658595,5000.0,0.000161,3]
[394417588,1763549704490,223.0,0.00021773,120]
[394417589,1763549705740,223.0,0.00022861,120]
[394417590,1763549707006,223.0,0.00024005,120]
[394417592,1763549708232,223.0,0.00025205,120]
[394417593,1763549709496,223.0,0.00026465,120]
[394417594,1763549710790,223.0,0.00027788,120]
[394417595,1763549712041,223.0,0.00029178,120]
[394417596,1763549713330,223.0,0.00030637,120]
[394417597,1763549714570,223.0,0.00032168,120]
[394417601,1763549866371,-413.06789508,0.00015725,2]
[394417602,1763549870396,-221.7850037,0.00015725,2]
[394417603,1763549872150,-410.92421229,0.00015725,2]
[394417611,1763550012573,230.0,0.00021883,120]
[394417617,1763550122724,159.45125689,0.00014862,2]
[394417618,1763550125555,169.77055211,0.00014862,2]
[394417619,1763550242624,159.45125689,0.00014862,2]
[394417620,1763550244720,169.77055211,0.00014862,2]
[394417621,1763550363672,169.77055211,0.00014878,2]
[394417645,1763550632398,-157.42856172,0.00015615,2]
[394417647,1763550632408,-215.69054732,0.00015709,2]
[394417649,1763550632419,-5268.81693143,0.00015709,2]
[394417652,1763550632438,-4570.83528656,0.00015709,2]
[394417654,1763550632447,-1200.0,0.00015711,2]
[394417656,1763550632457,-4954.22288893,0.00015725,2]
[394417658,1763550632466,-224.0,0.00015808,2]
[394417660,1763550632475,-300.0,0.00015808,2]
[394417662,1763550632484,-1200.0,0.00015808,2]
[394417664,1763550632493,-2432.89059656,0.00015809,2]
[394417755,1763550638292,-500.0,0.00015808,2]
[394417756,1763550638302,-453.39482667,0.00015808,2]
[394417757,1763550638314,-46.60517333,0.00015808,2]
[394417758,1763550638323,-234.43482667,0.00015808,2]
[394417759,1763550638334,-265.56517333,0.00015808,2]
[394417760,1763550638344,-500.0,0.00015808,2]
[394417761,1763550638353,-500.0,0.00015808,2]
[394417762,1763550638363,-500.0,0.00015808,2]
[394417763,1763550638372,-500.0,0.00015808,2]
[394417764,1763550638381,-500.0,0.00015808,2]
[394417765,1763550638391,-500.0,0.00015808,2]
[394417766,1763550638400,-500.0,0.00015808,2]
[394417767,1763550638409,-500.0,0.00015808,2]
[394417768,1763550638418,-500.0,0.00015808,2]
[394417769,1763550638427,-500.0,0.00015808,2]
[394417770,1763550638436,-500.0,0.00015808,2]
[394417771,1763550638445,-500.0,0.00015808,2]
[394417772,1763550638455,-500.0,0.00015808,2]
[394417773,1763550638464,-608.66501693,0.00015808,2]
[394417774,1763550638474,-500.0,0.00015808,2]
[394417775,1763550638483,-500.0,0.00015808,2]
[394417776,1763550638493,-500.0,0.00015808,2]
[394417777,1763550638502,-312.28348436,0.00015808,2]
[394417778,1763550638514,-187.71651564,0.00015808,2]
[394417779,1763550638524,-500.0,0.00015808,2]
[394417780,1763550638538,-500.0,0.00015808,2]
[394417781,1763550638547,-500.0,0.00015808,2]
[394417782,1763550638557,-500.0,0.00015808,2]
[394417783,1763550638567,-500.0,0.00015808,2]
[394417784,1763550638576,-500.0,0.00015808,2]
[394417785,1763550638586,-500.0,0.00015808,2]
[394417786,1763550638596,-612.95779538,0.00015808,2]
[394417787,1763550638606,-500.0,0.00015808,2]
[394417788,1763550638616,-500.0,0.00015808,2]
[394417789,1763550638626,-500.0,0.00015808,2]
[394417790,1763550638636,-500.0,0.00015808,2]
[394417791,1763550638646,-500.0,0.00015808,2]
[394417792,1763550638656,-500.0,0.00015808,2]
[394417793,1763550638665,-500.0,0.00015808,2]
[394417794,1763550638675,-500.0,0.00015808,2]
[394417795,1763550638684,-500.0,0.00015808,2]
[394417796,1763550638694,-500.0,0.00015808,2]
[394417797,1763550638704,-500.0,0.00015808,2]
[394417798,1763550638713,-500.0,0.00015808,2]
[394417799,1763550638722,-562.94810392,0.00015808,2]
[394417800,1763550638732,-500.0,0.00015808,2]
[394417801,1763550638742,-500.0,0.00015808,2]
[394417802,1763550638753,-500.0,0.00015808,2]
[394417803,1763550638762,-500.0,0.00015808,2]
[394417804,1763550638772,-500.0,0.00015808,2]
[394417805,1763550638783,-500.0,0.00015808,2]
[394417806,1763550638792,-500.0,0.00015808,2]
[394417807,1763550638801,-500.0,0.00015808,2]
[394417808,1763550638810,-500.0,0.00015808,2]